Cogmind - Beta 15 @@@ ROGUE MODE // 2025.09.13 @ 12:35:36 Player: konomiyu Result: Self-destructed Performance ------------- Evolutions (2) 1000 Regions Visited (3) 600 Robots Destroyed (53) 265 Value Destroyed (1619) 1619 Prototype IDs (5) 100 Alien Tech Used (0) 0 Bonus (0) 0 TOTAL SCORE: 3584 Bonus ------- None Cogmind --------- Core Integrity 341/550 Matter 243/300 Energy 265/265 System Corruption 0% Temperature Cool (0) Movement Core (850) Ox16 Location -8/Materials Parts ------- > --- POWER (1) -------- Improved Ion Engine > --- PROPULSION (4) --- (None) > --- UTILITY (4) ------ High-capacity Storage Unit Sensor Array Signal Interpreter > --- WEAPON (2) ------- Heavy Assault Rifle > --- INVENTORY (20) --- Light Nuclear Core Medium Matter Pod (0) Compact Matter Pod (0) Structural Scanner Hardened Medium Armor Plating System Shield Light Assault Rifle Light Assault Rifle Flak Cannon Datajack Hammer Peak State ------------ > --- POWER ------------ Light Nuclear Core > --- PROPULSION ------- Light Treads Light Treads Light Treads Advanced Treads > --- UTILITY ---------- High-capacity Storage Unit Sensor Array Signal Interpreter High-powered Tractor Beam > --- WEAPON ----------- Flak Cannon Grenade Launcher > --- INVENTORY -------- Light Ion Engine Light Treads Medium Matter Pod Compact Matter Pod System Shield Light Assault Rifle Light Assault Rifle Light Assault Rifle Datajack Hammer [Rating: 20] Favorites ----------- Power Ion Engine Engine Ion Engine Power Core Light Nuclear Core Propulsion Light Treads Treads Light Treads Leg Aluminum Leg Utility Structural Scanner Device Structural Scanner Storage Small Storage Unit Processor Signal Interpreter Weapon Light Assault Rifle Ballistic Gun Light Assault Rifle Ballistic Cannon Flak Cannon Launcher Grenade Launcher Special Melee Weapon Datajack Build | -11 -10 -10 -8 ------- Run | Yrd Mat Sub Mat Slots Evolved 4 | . . . 4 Power . | . . . . Propulsion 2 | . . . 2 Utility 2 | . . . 2 Weapon . | . . . . Parts Attached 34 | 7 5 1 21 Power 6 | 2 . . 4 Engine 5 | 2 . . 3 Core 1 | . . . 1 Reactor . | . . . . Propulsion 12 | 2 3 . 7 Treads 11 | 2 2 . 7 Leg 1 | . 1 . . Wheel . | . . . . Hover . | . . . . Flight . | . . . . Utility 7 | 1 1 . 5 Device 4 | . 1 . 3 Storage 2 | 1 . . 1 Processor 1 | . . . 1 Hackware . | . . . . Protection . | . . . . Artifact . | . . . . Weapon 9 | 2 1 1 5 Energy Gun . | . . . . Energy Cannon . | . . . . Ballistic Gun 6 | 2 1 . 3 Ballistic Cannon 1 | . . . 1 Launcher 1 | . . 1 . Special Weapon . | . . . . Impact Weapon . | . . . . Slashing Weapon . | . . . . Piercing Weapon . | . . . . Special Melee Weapon 1 | . . . 1 Unidentified Prototypes . | . . . . Parts Lost 18 | . 1 . 17 Power 3 | . . . 3 Propulsion 10 | . 1 . 9 Utility 2 | . . . 2 Weapon 3 | . . . 3 Highest Loss Streak 4 | . 1 . 4 To Critical Strikes . | . . . . Average Backups 8 | 2 6 8 9 Power . | . 1 1 . Propulsion 1 | 1 1 1 . Utility 2 | . 1 3 3 Weapon 2 | . 2 2 3 Tool/Special . | . . . . Unused Backups 8 | . 2 . 6 Power 1 | . . . 1 Propulsion 2 | . 2 . . Utility 4 | . . . 4 Weapon 1 | . . . 1 Tool/Special . | . . . . Average Slot Usage (%) 97 | . 99 100 94 Engine 10 | . 14 14 6 Core 1 | . . . 2 Treads 30 | . 27 28 32 Device 15 | . 13 14 16 Storage 11 | . 14 14 9 Processor 4 | . . . 8 Ballistic Gun 16 | . 28 15 9 Ballistic Cannon 2 | . . . 5 Launcher 3 | . . 12 3 Peak Build Rating 20 | 6 7 7 20 Average Rating 11 | 4 6 7 15 On Entrance 5 | . 6 7 7 Naked Turns . | . . . . Heaviest Build 56 | 12 13 15 56 Greatest Support 82 | 40 40 40 82 Greatest Overweight (x) 2 | . . . 2 Average Overweight (x) . | . . . . Largest Inventory Capacity 20 | 8 8 8 20 Average Capacity 13 | 6 8 8 19 Most Carried 14 | 5 8 8 14 Average Carried 8 | 3 7 8 9 Final Capacity 20 | 8 8 8 20 Final Carried 11 | 4 8 8 11 Class Distribution -------------------- 60% | Mutant 20% | Skirmisher 11% | Scavenger-Skirmisher 7% | Scavenger-Mutant Dominant Class ---------------- Mutant | -10/Materials Mutant | -10/Subcaves Skirmisher | -8/Materials Resources | -11 -10 -10 -8 ----------- Run | Yrd Mat Sub Mat Matter Collected 1307 | 228 259 46 774 Remotely 275 | . . . 275 Salvage Created 1566 | . 532 19 1015 Parts 108 | . 51 1 56 Haulers Intercepted 3 | . 1 . 2 Recyclers Shooed . | . . . . Parts Field Recycled . | . . . . Retrieved Matter . | . . . . Parts Self-Destructed 8 | . . 8 . Prevented . | . . . . Kills | -11 -10 -10 -8 ------- Run | Yrd Mat Sub Mat Combat Hostiles Destroyed 42 | . 17 1 24 Melee 1 | . . . 1 Guns 32 | . 17 1 14 Cannons 6 | . . . 6 AOE 3 | . . . 3 Classes Destroyed 12 | . 5 1 6 Worker 1 | . . . 1 Builder 1 | . . . 1 Hauler 3 | . 1 . 2 Mechanic 2 | . . . 2 Operator 3 | . 1 . 2 Watcher 1 | . 1 . . Swarmer 11 | . 9 . 2 Grunt 22 | . 8 . 14 Brawler 1 | . . . 1 Sentry 5 | . . . 5 Hunter 2 | . . . 2 Subdweller 1 | . . 1 . Best Kill Streak 5 | . 5 1 5 Combat Bots Only 3 | . 3 1 3 Max Kills in Single Turn 3 | . 1 1 3 Gunslinging . | . . . . Exploded 2 | . . . 2 Melee 1 | . . . 1 Uniques/NPCs Destroyed . | . . . . Combat | -11 -10 -10 -8 -------- Run | Yrd Mat Sub Mat Hostile Shots Fired 293 | . 90 4 199 Missed 93 | . 24 2 67 Hits 200 | . 66 2 132 Projectile 200 | . 66 2 132 Critical Strikes 6 | . . . 6 Damage Taken 2689 | . 708 30 1951 Core 376 | . 153 14 209 Absorbed by Shields . | . . . . Core Remaining (%) 66 | 100 . 33 . Volleys Fired 193 | . 74 6 113 Largest 2 | . 2 2 2 Hottest 67 | . 40 50 67 Shots Fired 360 | . 149 9 202 Gun 305 | . 149 6 150 Cannon 30 | . . . 30 Launcher 25 | . . 3 22 Special . | . . . . Kinetic 335 | . 149 6 180 Thermal . | . . . . Explosive 25 | . . 3 22 Electromagnetic . | . . . . Robot Hit Streak 18 | . 18 1 17 Robot Miss Streak 7 | . 3 3 7 Penetration Max . | . . . . Secondary Targets 3 | . 3 . . Max Gunslinging Chain 1 | . 1 . . Shots Hit Robots 227 | . 99 1 127 Core Hits 136 | . 39 2 95 Critical Kills . | . . . . Critical Parts Destroyed . | . . . . Critical Strikes . | . . . . Melee Attacks . | . . . . Impact . | . . . . Slashing . | . . . . Piercing . | . . . . Sneak Attacks . | . . . . Combat Hostiles . | . . . . Follow-up Attacks . | . . . . Damage Inflicted 3200 | . 793 54 2353 Guns 1808 | . 793 17 998 Cannons 420 | . . . 420 Explosions 943 | . . 37 906 Melee . | . . . . Ramming 29 | . . . 29 Kinetic 2228 | . 793 17 1418 Thermal . | . . . . Explosive 943 | . . 37 906 Electromagnetic . | . . . . Impact . | . . . . Slashing . | . . . . Piercing . | . . . . Highest Corruption 2 | . 2 2 . Average Corruption 1 | . 1 2 . Corruption Purged . | . . . . Corruption Blocked . | . . . . Effects 15 | . 10 5 . Message Errors 5 | . 2 3 . Matter Fused 2 | . 2 . . Energy Discharges 2 | . 2 . . Parts Fused 2 | . 2 . . Data Loss (minor) 2 | . 1 1 . Misfires 2 | . 1 1 . Overload Shots . | . . . . Overflow Damage 15 | . . . 15 Projectiles . | . . . . Explosions 12 | . . . 12 Melee 3 | . . . 3 Knockbacks 9 | . . . 9 Impact . | . . . . Kinetic 9 | . . . 9 Secondary . | . . . . Self-Inflicted Damage 41 | . . . 41 Shots 2 | . . . 2 Rammed 3 | . . . 3 Targets Rammed 4 | . . . 4 Kicked . | . . . . Crushed 1 | . . . 1 Highest Temperature 33 | . 20 . 33 Average Temperature 7 | . 8 . 7 Received Heat Transfer 1278 | . 297 9 972 Siege Activations . | . . . . Martial Activations . | . . . . Shielding Activations . | . . . . Robots Disrupted . | . . . . Combat Hostiles . | . . . . Robots Corrupted 1 | . . . 1 Combat Hostiles . | . . . . Parts Fried 2 | . . . 2 Impact Corruptions 1 | . . . 1 Robots Melted . | . . . . Combat Hostiles . | . . . . Parts Melted . | . . . . Heat Transferred . | . . . . Parts Sabotaged . | . . . . Parts Stolen . | . . . . Parts Stripped . | . . . . Power Chain Reactions . | . . . . Alert | -11 -10 -10 -8 ------- Run | Yrd Mat Sub Mat Maximum Alert Level 1 | . . . 1 Low Security (%) 89 | 100 100 . 81 Level 1 10 | . . . 18 Level 2 . | . . . . Level 3 . | . . . . Level 4 . | . . . . Level 5 . | . . . . High Security . | . . . . Max Security . | . . . . Peak Influence 271 | . 120 . 271 Initial . | . . . . Average 73 | . 42 . 98 Influence Increases 1298 | . 458 . 840 Destroy 0b10 Robot/C 820 | . 340 . 480 Destroy 0b10 Robot/NC 55 | . 15 . 40 Destroy Leader 178 | . 74 . 104 Successful Hack 31 | . 14 . 17 Disable Machine 45 | . . . 45 Destroy Structure 109 | . . . 109 Lose Combat Pursuer 60 | . 15 . 45 Influence Decreases 1043 | . 392 66 585 Entered New Map 33 | . . 33 . Time Decay 830 | . 382 33 415 Lost Part 180 | . 10 . 170 Squads Dispatched 8 | . 4 . 4 Investigation 3 | . 3 . . Extermination . | . . . . Reinforcement 5 | . 1 . 4 Assault . | . . . . Garrison . | . . . . Intercept . | . . . . Searches Triggered . | . . . . Construction Impeded 3 | . . . 3 Haulers Reinforced . | . . . . Active Scanning Responses . | . . . . Cargo Convoy Interrupts . | . . . . Stealth | -11 -10 -10 -8 --------- Run | Yrd Mat Sub Mat Distress Signals 6 | . 1 . 5 Communications Jammed . | . . . . Distress Signals . | . . . . Times Spotted 71 | . 28 3 40 Peak Tracking Total 7 | . 5 1 7 Tactical Retreats 2 | . 1 . 1 Traps | -11 -10 -10 -8 ------- Run | Yrd Mat Sub Mat Traps Triggered 3 | . 3 . . Indirectly . | . . . . Trap Hack Attempts 3 | . . . 3 Triggered . | . . . . Disarmed . | . . . . Reprogrammed 1 | . . . 1 Reused . | . . . . Traps Extracted . | . . . . Installed . | . . . . Triggered . | . . . . Machines | -11 -10 -10 -8 ---------- Run | Yrd Mat Sub Mat Machines Disabled 3 | . . . 3 Max in Single Turn 1 | . . . 1 Machines Repaired . | . . . . Machines Dismantled . | . . . . Machines Sabotaged . | . . . . Overloaded Fab Kills . | . . . . Hacking | -11 -10 -10 -8 --------- Run | Yrd Mat Sub Mat Machines Accessed 10 | . 8 . 2 Terminals 9 | . 7 . 2 Fabricators . | . . . . Repair Stations . | . . . . Recycling Units 1 | . 1 . . Scanalyzers . | . . . . Garrison Access . | . . . . Total Hacks 26 | . 18 . 8 Successful 9 | . 5 . 4 Failed 17 | . 13 . 4 Catastrophic 6 | . 6 . . Database Lockouts . | . . . . Manual 18 | . 14 . 4 Terminals 25 | . 17 . 8 Fabricators . | . . . . Repair Stations . | . . . . Recycling Units 1 | . 1 . . Scanalyzers . | . . . . Garrison Access . | . . . . Terminal Hacks 6 | . 3 . 3 Robot Analysis 1 | . 1 . . Prototype ID Bank 2 | . 1 . 1 Terminal Index 1 | . . . 1 Alert Level 1 | . 1 . . Registered Components 1 | . . . 1 Fabricator Hacks . | . . . . Repair Station Hacks . | . . . . Recycling Unit Hacks . | . . . . Scanalyzer . | . . . . Garrison Access Hacks . | . . . . Unauthorized Hacks 3 | . 2 . 1 Terminals 2 | . 1 . 1 Operators 2 | . 1 . 1 Fabricators . | . . . . Repair Stations . | . . . . Recycling Units 1 | . 1 . . Monitor 1 | . 1 . . Scanalyzers . | . . . . Garrison Access . | . . . . Data Cores Recovered . | . . . . Used . | . . . . Hacking Detections 7 | . 7 . . Full Trace Events 3 | . 3 . . Feedback Events 1 | . 1 . . Corruption 1 | . 1 . . Feedback Blocked . | . . . . Robot Schematics Acquired . | . . . . Robots Built . | . . . . Authchips . | . . . . Time . | . . . . Total Robot Build Rating . | . . . . Part Schematics Acquired . | . . . . Parts Built . | . . . . Authchips . | . . . . Time . | . . . . Total Part Build Rating . | . . . . Parts Repaired . | . . . . Time . | . . . . Parts Recycled . | . . . . Recycled Matter . | . . . . Retrieved Matter . | . . . . Retrieved Components . | . . . . Parts Scanalyzed . | . . . . Part Schematics Acquired . | . . . . Parts Damaged . | . . . . Bothacking | -11 -10 -10 -8 ------------ Run | Yrd Mat Sub Mat Used RIF Installer . | . . . . Robots Hacked . | . . . . Non-combat . | . . . . Combat . | . . . . Robot Hacks Applied . | . . . . Relay Couplers Released . | . . . . Fabnet Peak Effective % . | . . . . Robots Rewired . | . . . . Allies Hacked . | . . . . Hacks Repelled . | . . . . Allies | -11 -10 -10 -8 -------- Run | Yrd Mat Sub Mat Total Allies . | . . . . Largest Group . | . . . . Highest-Rated Group . | . . . . Highest-Rated Ally . | . . . . Total Orders . | . . . . Ally Attacks . | . . . . Total Damage . | . . . . Kills . | . . . . Allies Corrupted . | . . . . Allies Melted . | . . . . Intel | -11 -10 -10 -8 ------- Run | Yrd Mat Sub Mat Active Infowar (turns) 3530 | . 1266 455 1809 Sensors 1670 | . . . 1670 Structural 3070 | . 1266 455 1349 Robot Analysis Total 1 | . 1 . . Derelict Logs Recovered . | . . . . Drone Launches . | . . . . Drone Recoveries . | . . . . Exploration | -11 -10 -10 -8 ------------- Run | Yrd Mat Sub Mat Turns Passed 3657 | 84 1309 455 1809 Spaces Moved 1558 | 46 653 274 585 Core 5 | 5 . . . Treads 1553 | 41 653 274 585 Legs . | . . . . Wheels . | . . . . Hover . | . . . . Flight . | . . . . Fastest Speed 50 | 50 160 160 155 Average Speed 159 | 148 160 160 159 Slowest Speed 320 | 160 160 160 320 Overloaded Moves . | . . . . Propulsion Burnouts . | . . . . Robots Hopped . | . . . . Potential Cave-ins . | . . . . Cave-ins Triggered . | . . . . Exploration Rate (%) 41 | 4 96 23 41 Regions Visited 3 Branch Regions 1 Pre-discovered Areas . | . . . . Known Exits Taken . | . . . . Unknown Exits Taken 3 | 1 1 1 . Scrap Searched . | . . . . Spaces Dug 25 | . . . 25 Terrain Destroyed 139 | . . 13 126 Melee . | . . . . Projectile . | . . . . AOE 139 | . . 13 126 Terrain Rammed . | . . . . Walls Destroyed . | . . . . Machines Disabled . | . . . . Actions | -11 -10 -10 -8 --------- Run | Yrd Mat Sub Mat Total 2419 | 61 800 283 1275 Wait 571 | . 53 3 515 Move 1555 | 45 652 273 585 Hop . | . . . . Pick Up 40 | 9 10 . 21 Fast Attach 1 | 1 . . . Attach 22 | 5 2 . 15 Detach . | . . . . Swap 22 | 1 4 1 16 Drop 8 | . 5 . 3 Fire 193 | . 74 6 113 Melee . | . . . . Ram . | . . . . Kick . | . . . . Crush 4 | . . . 4 Escape Stasis . | . . . . Rewire . | . . . . Trap 3 | . . . 3 Miscellaneous . | . . . . Route ------- -11/Scrapyard -10/Materials (discovered 6 exits: [*Mat x3] / [*Min x2] / [*Sub]) -10/Subcaves -8/Materials (discovered 1 exit: [*Fac]) History --------- Turn | Location | Event 4 | -11/Scrapyard | Discovered new exit (range 16) 85 | -11/Scrapyard | Entered Materials 106 | -10/Materials | Discovered new exit (range 16) 301 | -10/Materials | Build established: Mutant 415 | -10/Materials | Discovered new exit (range 10) 451 | -10/Materials | Discovered new exit (range 9) 710 | -10/Materials | Core integrity fell below 50% 771 | -10/Materials | Discovered new exit (range 8) 1258 | -10/Materials | Discovered new exit (range 4) 1324 | -10/Materials | Discovered new exit (range 6) 1394 | -10/Materials | Entered Subcaves 1395 | -10/Subcaves | Approached by a straggling Scientist 1823 | -10/Subcaves | Discovered new exit (range 10) 1849 | -10/Subcaves | Entered Materials 1849 | -8/Materials | Evolved 4 slots: Propulsion x2, Utility x2 2139 | -8/Materials | Build established: Skirmisher 2826 | -8/Materials | Build established: Mutant 2899 | -8/Materials | Discovered new exit (range 13) 3211 | -8/Materials | Build established: Scavenger-Skirmisher 3426 | -8/Materials | Lost 3 parts (1p2n) 3658 | -8/Materials | Self-destructed Last Messages --------------- 03625_ Acquired 47 matter. 03627_ K-01 Serf collects debris. 03639_ Acquired Hvy. Assault Rifle. 03640_ K-01 Serf collects debris. 03640_ Hpw. Tractor Beam destroyed. 03644_ K-01 Serf collects debris. 03645_ R-06 Scavenger collects Imp. Heat Sink. 03648_ K-01 Serf collects debris. 03650_ K-01 Serf destroyed. 03650_ K-01 Serf collects debris. 03650_ Critical hit (Burn: +37). 03650_ R-06 Scavenger collects Wheel. 03652_ Critical hit (Burn: +37). 03652_ Hvy. Assault Rifle destroyed. 03653_ K-01 Serf collects debris. 03654_ R-06 Scavenger collects Sml. Matter Pod. 03656_ Lgt. Treads destroyed. 03656_ G-47 Trooper destroyed. 03657_ R-06 Scavenger collects Heat Sink. 03658_ K-01 Serf collects debris. Map ----- +----------------------------------------------------+ | ???# # * # #????????????????????????????????????? | | ???## ! # #######???????????????????????????????? | | ????## #########???????????????????????????????? | | ????## ##???????????????????????????????? | | ????# ##???????????????????????????????? | | ????## ##???????????????????????????????? | | ????######### ##???????????????????????????????? | | ????######### ##???????????????????????????????? | | #####?????### ###??????????????????????????????? | | ######### ###??????????????????????????????? | | "T"""####### ######??????????????????????????? | | ##### ???????????????????? | | x ???????????????????? | | ##### #????????????????? | | ############ ##????????## #????????????????? | | ############## ####?????????? #????????????????? | | #####?????#### ####?????????? #????????????????? | | ###########?## ##???????????? ####?????????????? | | "T"########?## ##???????????? ??????????????? | | ##?## ##???????????? ???????????????? | | ######## ##### ##?????????? # ????????????????? | | ######## #####!##??????? # #????????????????? | | ?####### ##### ##### ?"" # #????????????????? | | ?## [ =##### # #????????????????? | | ?## [ ############## ###??????????????? | | ?## *= ! ! @ [%[ ###### ""????????? | | ?## ################ = !kr g u + ""????????? | | ?## ################ = ###### ???????? | | ?## #####!!!!#########T#### ##???????????????? | | ?## ####! !############# ##???????????????? | | ?## #### ######### ### ###??????????????? | | ?## ##### ## ## #########????????? | | ?## ##?## = *+ T # ####### ?????? | | ?## ##?## ###### """ #[ ????? | | ### ##?## ###### """*+ ????? | | ### ##?## ##??## """=# ????? | | ### ##### ##??## # ####### ?????? | | ##### ##??## ## #########? ??????? | | ##??## ## ###??????????????? | | #### ##??############# ##???????????????? | | ####+##### # ?? ######## ##???????????????? | | # + # ?????????????? ##???????????????? | | #?? ?? ## # ?????????????? ##???????????????? | | #?? ?? ## # ?????????????? ##???????????????? | | ??? ???## # ??????????????######???????????????? | | ??? ???## # ???????????????????????????????????? | | ??? ???## # ???????????????????????????????????? | | ??? ???? # ???????????????????????????????????? | | ??? ????### ???????????????????????????????????? | | ?? ???####???????????????????????????????????? | +----------------------------------------------------+ Best States ------------- Heat Dissipation 31 Energy Generation 14 Energy Capacity 265 Matter Stores 300 Matter Capacity 300 Sight Range 16 Robot Scan Range 14 Terrain Scan Density 10 Evasion (%) 40 Recoil Reduction 4 Item Schematics ----------------- None Robot Schematics ------------------ None Fabricated ------------ Nothing Repaired ---------- Nothing Alien Tech Used ----------------- None Achievements -------------- None Challenges ------------ None Game ------ Seed BehemothChargeDerivative Manual? 0 Play Time 00:32:06 Cumulative 19.3 hours Start 2025.09.13 @ 06:49:17 End 2025.09.13 @ 12:35:36 Sessions 5 Manual Loads 0 Difficulty Rogue Special Mode None Game No. 24 Rogue 24 Adventurer 0 Explorer 0 Win Type - Total 0 Types 0/0/0/0/0/0/0/0/0/0 Lore% 12 Gallery% 16 Achievement% 20 Wizard Run 0 Options --------- Layout 1 ASCII 0 Keyboard 0 Movement Mouse Keybinds 0 Fullscreen 2 Font 24/Smallcaps Map View 50x35 Zoom Use 0% Tactical HUD 1 Map Filters NONE Filters NONE Steam 1 RUN: b413c096-095e-40c5-8c40-443c7f5f38d4